[Event "December 19 Early 2023"]
[Site "https://www.chess.com"]
[Date "2023.12.19"]
[Round "5"]
[White "Zhigalko, Sergei"]
[Black "Rozman, Levy"]
[Result "1-0"]
[Board "34"]
[TimeControl "180+1"]
[WhiteFideId "13502956"]
[BlackFideId "2039877"]
[WhiteElo "2616"]
[BlackElo "2376"]
[WhiteTeam "BLR"]
[BlackTeam "USA"]
[WhiteClock "0:00:06"]
[BlackClock "0:00:03"]

1. e4 {[%clk 0:03:00]}  d5 {[%clk 0:02:59]} 2. exd5 {[%clk 0:03:01]}  Qxd5 {[%clk 0:03:00]} 3. Nc3 {[%clk 0:03:01]}  Qa5 {[%clk 0:03:00]} 4. d4 {[%clk 0:03:00]}  Nf6 {[%clk 0:03:00]} 5. Nf3 {[%clk 0:03:00]}  Bf5 {[%clk 0:03:01]} 6. Ne5 {[%clk 0:02:57]}  c6 {[%clk 0:03:00]} 7. Bd3 {[%clk 0:02:57]}  Bxd3 {[%clk 0:02:58]} 8. Qxd3 {[%clk 0:02:58]}  Nbd7 {[%clk 0:02:56]} 9. Nxd7 {[%clk 0:02:58]}  Nxd7 {[%clk 0:02:56]} 10. O-O {[%clk 0:02:58]}  e6 {[%clk 0:02:55]} 11. Qg3 {[%clk 0:02:58]}  O-O-O {[%clk 0:02:42]} 12. Bf4 {[%clk 0:02:47]}  Nf6 {[%clk 0:02:36]} 13. Be5 {[%clk 0:02:39]}  Nd7 {[%clk 0:02:28]} 14. Bf4 {[%clk 0:02:22]}  Nf6 {[%clk 0:02:26]} 15. Be5 {[%clk 0:02:08]}  Nd7 {[%clk 0:02:16]} 16. Rfd1 {[%clk 0:01:58]}  h5 {[%clk 0:01:48]} 17. Ne4 {[%clk 0:01:41]}  h4 {[%clk 0:01:35]} 18. Qf4 {[%clk 0:01:41]}  f6 {[%clk 0:01:30]} 19. Bd6 {[%clk 0:01:40]}  Qf5 {[%clk 0:01:23]} 20. h3 {[%clk 0:01:16]}  Qxf4 {[%clk 0:01:13]} 21. Bxf4 {[%clk 0:01:17]}  Nb6 {[%clk 0:01:13]} 22. c3 {[%clk 0:01:13]}  Na4 {[%clk 0:01:03]} 23. b3 {[%clk 0:01:03]}  Nb6 {[%clk 0:01:02]} 24. Re1 {[%clk 0:00:57]}  Re8 {[%clk 0:01:02]} 25. Re2 {[%clk 0:00:46]}  Nd5 {[%clk 0:00:55]} 26. Bd2 {[%clk 0:00:46]}  Nc7 {[%clk 0:00:53]} 27. Rae1 {[%clk 0:00:43]}  b6 {[%clk 0:00:52]} 28. c4 {[%clk 0:00:41]}  Kd7 {[%clk 0:00:47]} 29. Bf4 {[%clk 0:00:37]}  Bb4 {[%clk 0:00:45]} 30. Rd1 {[%clk 0:00:37]}  Re7 {[%clk 0:00:40]} 31. a3 {[%clk 0:00:30]}  Bxa3 {[%clk 0:00:34]} 32. Ra1 {[%clk 0:00:21]}  Bb4 {[%clk 0:00:30]} 33. Rxa7 {[%clk 0:00:20]}  Rc8 {[%clk 0:00:30]} 34. c5 {[%clk 0:00:14]}  bxc5 {[%clk 0:00:25]} 35. Bd6 {[%clk 0:00:14]}  Rf7 {[%clk 0:00:20]} 36. Bxc5 {[%clk 0:00:10]}  Rb8 {[%clk 0:00:16]} 37. Bxb4 {[%clk 0:00:06]}  Rxb4 {[%clk 0:00:16]} 38. Nc5+ {[%clk 0:00:07]}  Kd6 {[%clk 0:00:13]} 39. Nxe6 {[%clk 0:00:04]}  Re7 {[%clk 0:00:14]} 40. Rxc7 {[%clk 0:00:03]}  Rxe6 {[%clk 0:00:05]} 41. Rxc6+ {[%clk 0:00:02]}  Kxc6 {[%clk 0:00:06]} 42. Rxe6+ {[%clk 0:00:02]}  Kd7 {[%clk 0:00:07]} 43. Re4 {[%clk 0:00:01]}  g5 {[%clk 0:00:06]} 44. g3 {[%clk 0:00:01]}  hxg3 {[%clk 0:00:06]} 45. fxg3 {[%clk 0:00:02]}  Rxb3 {[%clk 0:00:06]} 46. Kg2 {[%clk 0:00:02]}  Kd6 {[%clk 0:00:02]} 47. h4 {[%clk 0:00:03]}  gxh4 {[%clk 0:00:02]} 48. gxh4 {[%clk 0:00:04]}  Rb2+ {[%clk 0:00:02]} 49. Kf3 {[%clk 0:00:04]}  Kd5 {[%clk 0:00:03]} 50. Rg4 {[%clk 0:00:04]}  Rb3+ {[%clk 0:00:03]} 51. Kf4 {[%clk 0:00:04]}  Kxd4 {[%clk 0:00:03]} 52. Kf5+ {[%clk 0:00:04]}  Kd5 {[%clk 0:00:03]} 53. Kxf6 {[%clk 0:00:04]}  Rh3 {[%clk 0:00:04]} 54. Kg6 {[%clk 0:00:04]}  Ke5 {[%clk 0:00:04]} 55. h5 {[%clk 0:00:04]}  Ke6 {[%clk 0:00:04]} 56. h6 {[%clk 0:00:05]}  Ke7 {[%clk 0:00:04]} 57. h7 {[%clk 0:00:04]}  Kf8 {[%clk 0:00:04]} 58. Rf4+ {[%clk 0:00:05]}  Ke7 {[%clk 0:00:05]} 59. Re4+ {[%clk 0:00:05]}  Kf8 {[%clk 0:00:05]} 60. Rf4+ {[%clk 0:00:05]}  Ke7 {[%clk 0:00:06]} 61. Rf5 {[%clk 0:00:06]}  Rg3+ {[%clk 0:00:05]} 62. Rg5 {[%clk 0:00:06]}  Rh3 {[%clk 0:00:03]} 63. Kg7 {[%clk 0:00:06]} 1-0

[Event "December 19 Early 2023"]
[Site "https://www.chess.com"]
[Date "2023.12.19"]
[Round "5"]
[White "Piesik, Piotr"]
[Black "Sjugirov, Sanan"]
[Result "0-1"]
[Board "37"]
[TimeControl "180+1"]
[WhiteFideId "1136194"]
[BlackFideId "4189302"]
[WhiteElo "2319"]
[BlackElo "2569"]
[WhiteTeam "CZE"]
[BlackTeam "HUN"]
[WhiteClock "0:00:31"]
[BlackClock "0:00:11"]

1. Nf3 {[%clk 0:02:55]}  d5 {[%clk 0:02:58]} 2. g3 {[%clk 0:02:54]}  Bg4 {[%clk 0:02:57]} 3. Bg2 {[%clk 0:02:54]}  Nd7 {[%clk 0:02:57]} 4. O-O {[%clk 0:02:54]}  Ngf6 {[%clk 0:02:58]} 5. d3 {[%clk 0:02:55]}  c6 {[%clk 0:02:58]} 6. Nbd2 {[%clk 0:02:56]}  e6 {[%clk 0:02:58]} 7. e4 {[%clk 0:02:56]}  Be7 {[%clk 0:02:56]} 8. h3 {[%clk 0:02:56]}  Bh5 {[%clk 0:02:56]} 9. Qe1 {[%clk 0:02:56]}  O-O {[%clk 0:02:55]} 10. Kh2 {[%clk 0:02:53]}  a5 {[%clk 0:02:55]} 11. a4 {[%clk 0:02:52]}  Nc5 {[%clk 0:02:54]} 12. e5 {[%clk 0:02:50]}  Nfd7 {[%clk 0:02:54]} 13. Nd4 {[%clk 0:02:50]}  Na6 {[%clk 0:02:50]} 14. f4 {[%clk 0:02:49]}  Bc5 {[%clk 0:02:34]} 15. N2b3 {[%clk 0:02:46]}  Bxd4 {[%clk 0:02:15]} 16. Nxd4 {[%clk 0:02:45]}  Re8 {[%clk 0:02:16]} 17. Bd2 {[%clk 0:02:41]}  Qb6 {[%clk 0:02:14]} 18. Nb3 {[%clk 0:02:37]}  Nb4 {[%clk 0:02:12]} 19. Bxb4 {[%clk 0:02:28]}  axb4 {[%clk 0:02:11]} 20. a5 {[%clk 0:02:28]}  Qb5 {[%clk 0:02:11]} 21. d4 {[%clk 0:02:20]}  c5 {[%clk 0:02:09]} 22. g4 {[%clk 0:02:17]}  Bg6 {[%clk 0:02:08]} 23. f5 {[%clk 0:02:17]}  exf5 {[%clk 0:02:09]} 24. gxf5 {[%clk 0:02:18]}  Bh5 {[%clk 0:02:06]} 25. Qh4 {[%clk 0:01:46]}  Be2 {[%clk 0:02:04]} 26. Rf2 {[%clk 0:01:46]}  Bc4 {[%clk 0:00:20]} 27. f6 {[%clk 0:01:43]}  gxf6 {[%clk 0:00:21]} 28. exf6 {[%clk 0:01:41]}  Kh8 {[%clk 0:00:21]} 29. Rf5 {[%clk 0:01:32]}  Rg8 {[%clk 0:00:18]} 30. Rh5 {[%clk 0:01:28]}  Nf8 {[%clk 0:00:17]} 31. Nxc5 {[%clk 0:01:14]}  b6 {[%clk 0:00:16]} 32. Nb7 {[%clk 0:01:06]}  Qc6 {[%clk 0:00:12]} 33. a6 {[%clk 0:00:58]}  Rxa6 {[%clk 0:00:12]} 34. Rxa6 {[%clk 0:00:39]}  Bxa6 {[%clk 0:00:13]} 35. Bxd5 {[%clk 0:00:39]}  Qxc2+ {[%clk 0:00:12]} 36. Kh1 {[%clk 0:00:31]}  Qd1+ {[%clk 0:00:11]} 0-1

[Event "December 19 Early 2023"]
[Site "https://www.chess.com"]
[Date "2023.12.19"]
[Round "5"]
[White "Munkhgal, Gombosuren"]
[Black "Zakhartsov, Vladimir"]
[Result "0-1"]
[Board "38"]
[TimeControl "180+1"]
[WhiteFideId "4901266"]
[BlackFideId "4145097"]
[WhiteElo "2519"]
[BlackElo "2448"]
[WhiteTeam "MGL"]
[BlackTeam "RUS"]
[WhiteClock "0:00:07"]
[BlackClock "0:00:19"]

1. d4 {[%clk 0:02:21]}  Nf6 {[%clk 0:02:55]} 2. Bf4 {[%clk 0:02:21]}  c5 {[%clk 0:02:54]} 3. e3 {[%clk 0:02:17]}  d5 {[%clk 0:02:53]} 4. dxc5 {[%clk 0:02:17]}  Nc6 {[%clk 0:02:52]} 5. Bb5 {[%clk 0:02:16]}  e6 {[%clk 0:02:49]} 6. b4 {[%clk 0:02:16]}  Be7 {[%clk 0:02:48]} 7. Nf3 {[%clk 0:02:15]}  O-O {[%clk 0:02:48]} 8. Bxc6 {[%clk 0:02:15]}  bxc6 {[%clk 0:02:49]} 9. O-O {[%clk 0:02:15]}  a5 {[%clk 0:02:49]} 10. c3 {[%clk 0:02:15]}  Nd7 {[%clk 0:02:48]} 11. Ne5 {[%clk 0:01:55]}  Nxe5 {[%clk 0:02:26]} 12. Bxe5 {[%clk 0:01:56]}  f6 {[%clk 0:02:18]} 13. Bg3 {[%clk 0:01:52]}  e5 {[%clk 0:02:19]} 14. Nd2 {[%clk 0:01:51]}  Ba6 {[%clk 0:02:09]} 15. Re1 {[%clk 0:01:51]}  Rb8 {[%clk 0:02:07]} 16. a3 {[%clk 0:01:51]}  Qd7 {[%clk 0:02:04]} 17. Nb3 {[%clk 0:01:50]}  a4 {[%clk 0:02:01]} 18. Na5 {[%clk 0:01:47]}  Bb5 {[%clk 0:02:01]} 19. c4 {[%clk 0:01:46]}  Ba6 {[%clk 0:01:57]} 20. cxd5 {[%clk 0:01:32]}  cxd5 {[%clk 0:01:48]} 21. c6 {[%clk 0:01:32]}  Qe6 {[%clk 0:01:48]} 22. Qxa4 {[%clk 0:01:33]}  Bb5 {[%clk 0:01:43]} 23. Qc2 {[%clk 0:01:32]}  Rbc8 {[%clk 0:01:41]} 24. Rac1 {[%clk 0:01:32]}  Bd8 {[%clk 0:01:40]} 25. Qc5 {[%clk 0:01:28]}  Ba4 {[%clk 0:01:34]} 26. f4 {[%clk 0:00:57]}  h5 {[%clk 0:01:19]} 27. Qc3 {[%clk 0:00:52]}  Re8 {[%clk 0:01:02]} 28. fxe5 {[%clk 0:00:46]}  fxe5 {[%clk 0:01:01]} 29. Qc5 {[%clk 0:00:46]}  h4 {[%clk 0:00:58]} 30. Bf2 {[%clk 0:00:46]}  h3 {[%clk 0:00:55]} 31. gxh3 {[%clk 0:00:44]}  Bxa5 {[%clk 0:00:54]} 32. Qxa5 {[%clk 0:00:43]}  Bxc6 {[%clk 0:00:53]} 33. Qb6 {[%clk 0:00:36]}  Qd7 {[%clk 0:00:39]} 34. Bg3 {[%clk 0:00:32]}  d4 {[%clk 0:00:38]} 35. e4 {[%clk 0:00:33]}  d3 {[%clk 0:00:27]} 36. Qe3 {[%clk 0:00:32]}  d2 {[%clk 0:00:26]} 37. Qb3+ {[%clk 0:00:15]}  Kh7 {[%clk 0:00:23]} 38. Qf3 {[%clk 0:00:12]}  dxc1=Q {[%clk 0:00:19]} 39. Rxc1 {[%clk 0:00:12]}  Qd4+ {[%clk 0:00:19]} 40. Bf2 {[%clk 0:00:11]}  Qxe4 {[%clk 0:00:19]} 41. Qh5+ {[%clk 0:00:10]}  Kg8 {[%clk 0:00:19]} 42. Rxc6 {[%clk 0:00:07]}  Qxc6 {[%clk 0:00:19]} 0-1

[Event "December 19 Early 2023"]
[Site "https://www.chess.com"]
[Date "2023.12.19"]
[Round "5"]
[White "Wadsworth, Matthew J"]
[Black "Mahdavi, Reza"]
[Result "0-1"]
[Board "39"]
[TimeControl "180+1"]
[WhiteFideId "415804"]
[BlackFideId "12595926"]
[WhiteElo "2266"]
[BlackElo "2426"]
[WhiteTeam "ENG"]
[BlackTeam "IRI"]
[WhiteClock "0:00:00"]
[BlackClock "0:00:09"]

1. c4 {[%clk 0:03:00]}  e6 {[%clk 0:03:00]} 2. g3 {[%clk 0:03:00]}  d5 {[%clk 0:02:59]} 3. Bg2 {[%clk 0:03:00]}  Nf6 {[%clk 0:03:00]} 4. Nf3 {[%clk 0:03:01]}  d4 {[%clk 0:03:01]} 5. O-O {[%clk 0:03:00]}  c5 {[%clk 0:03:02]} 6. e3 {[%clk 0:03:00]}  Nc6 {[%clk 0:03:02]} 7. exd4 {[%clk 0:03:01]}  cxd4 {[%clk 0:03:03]} 8. d3 {[%clk 0:03:01]}  Bd6 {[%clk 0:03:04]} 9. Bg5 {[%clk 0:03:01]}  h6 {[%clk 0:03:05]} 10. Bxf6 {[%clk 0:03:01]}  Qxf6 {[%clk 0:03:05]} 11. Nbd2 {[%clk 0:02:59]}  Qe7 {[%clk 0:03:04]} 12. Re1 {[%clk 0:02:44]}  O-O {[%clk 0:03:04]} 13. a3 {[%clk 0:02:43]}  a5 {[%clk 0:03:04]} 14. Nb3 {[%clk 0:02:44]}  Qf6 {[%clk 0:03:04]} 15. c5 {[%clk 0:02:44]}  Bc7 {[%clk 0:03:03]} 16. Rc1 {[%clk 0:02:44]}  Rd8 {[%clk 0:03:01]} 17. Nbd2 {[%clk 0:02:38]}  Bd7 {[%clk 0:02:55]} 18. Qb3 {[%clk 0:02:25]}  Rab8 {[%clk 0:01:31]} 19. Ne4 {[%clk 0:02:15]}  Qe7 {[%clk 0:01:31]} 20. Nfd2 {[%clk 0:02:14]}  b5 {[%clk 0:01:25]} 21. Nd6 {[%clk 0:01:53]}  a4 {[%clk 0:01:05]} 22. Qc2 {[%clk 0:01:50]}  Na5 {[%clk 0:00:59]} 23. N2e4 {[%clk 0:01:10]}  Bc6 {[%clk 0:00:59]} 24. Qe2 {[%clk 0:00:43]}  Nb3 {[%clk 0:00:56]} 25. Rc2 {[%clk 0:00:38]}  f5 {[%clk 0:00:36]} 26. Nd2 {[%clk 0:00:37]}  Bxg2 {[%clk 0:00:35]} 27. Kxg2 {[%clk 0:00:38]}  Nxd2 {[%clk 0:00:23]} 28. Qxd2 {[%clk 0:00:25]}  Bxd6 {[%clk 0:00:24]} 29. cxd6 {[%clk 0:00:25]}  Rxd6 {[%clk 0:00:25]} 30. Qb4 {[%clk 0:00:25]}  Qd7 {[%clk 0:00:22]} 31. Rce2 {[%clk 0:00:23]}  Qc6+ {[%clk 0:00:21]} 32. Kg1 {[%clk 0:00:23]}  Re8 {[%clk 0:00:18]} 33. Re5 {[%clk 0:00:21]}  Rd5 {[%clk 0:00:19]} 34. h4 {[%clk 0:00:14]}  Kh7 {[%clk 0:00:16]} 35. b3 {[%clk 0:00:14]}  Rxe5 {[%clk 0:00:15]} 36. Rxe5 {[%clk 0:00:13]}  axb3 {[%clk 0:00:16]} 37. Qxb3 {[%clk 0:00:13]}  Qf3 {[%clk 0:00:13]} 38. Rxe6 {[%clk 0:00:07]}  Rxe6 {[%clk 0:00:13]} 39. Qxe6 {[%clk 0:00:08]}  Qxd3 {[%clk 0:00:13]} 40. Qf7 {[%clk 0:00:04]}  Qb1+ {[%clk 0:00:10]} 41. Kg2 {[%clk 0:00:04]}  Qe4+ {[%clk 0:00:10]} 42. Kg1 {[%clk 0:00:04]}  d3 {[%clk 0:00:08]} 43. h5 {[%clk 0:00:01]}  f4 {[%clk 0:00:09]} 44. gxf4 {[%clk 0:00:01]}  d2 {[%clk 0:00:09]} 45. Qd7 {[%clk 0:00:01]}  Qb1+ {[%clk 0:00:08]} 46. Kg2 {[%clk 0:00:00]}  d1=Q {[%clk 0:00:09]} 0-1

[Event "December 19 Early 2023"]
[Site "https://www.chess.com"]
[Date "2023.12.19"]
[Round "5"]
[White "Espinoza Villanueva, Rodrigo"]
[Black "Jones, Gawain C B"]
[Result "0-1"]
[Board "41"]
[TimeControl "180+1"]
[WhiteFideId "5140188"]
[BlackFideId "409561"]
[WhiteElo "1907"]
[BlackElo "2645"]
[WhiteTeam "MEX"]
[BlackTeam "ENG"]
[WhiteClock "0:00:00"]
[BlackClock "0:00:02"]

1. Nf3 {[%clk 0:03:00]}  Nf6 {[%clk 0:02:55]} 2. g3 {[%clk 0:03:00]}  b6 {[%clk 0:02:55]} 3. Bg2 {[%clk 0:03:00]}  Bb7 {[%clk 0:02:55]} 4. O-O {[%clk 0:03:01]}  c5 {[%clk 0:02:55]} 5. c4 {[%clk 0:02:59]}  Nc6 {[%clk 0:02:53]} 6. b3 {[%clk 0:02:59]}  d5 {[%clk 0:02:38]} 7. cxd5 {[%clk 0:02:52]}  Nxd5 {[%clk 0:02:38]} 8. Bb2 {[%clk 0:02:53]}  e6 {[%clk 0:02:37]} 9. d4 {[%clk 0:02:52]}  Nf6 {[%clk 0:02:30]} 10. dxc5 {[%clk 0:02:45]}  Qxd1 {[%clk 0:02:25]} 11. Rxd1 {[%clk 0:02:46]}  Bxc5 {[%clk 0:02:25]} 12. a3 {[%clk 0:02:36]}  a5 {[%clk 0:02:14]} 13. Nc3 {[%clk 0:02:33]}  Ke7 {[%clk 0:01:34]} 14. Na4 {[%clk 0:02:32]}  Rhd8 {[%clk 0:01:34]} 15. Rac1 {[%clk 0:02:24]}  Rxd1+ {[%clk 0:01:30]} 16. Rxd1 {[%clk 0:02:25]}  Ne4 {[%clk 0:01:23]} 17. e3 {[%clk 0:02:20]}  f6 {[%clk 0:01:23]} 18. Ne1 {[%clk 0:01:52]}  Nd8 {[%clk 0:01:06]} 19. Rc1 {[%clk 0:01:34]}  Nd2 {[%clk 0:00:21]} 20. Nxc5 {[%clk 0:00:58]}  bxc5 {[%clk 0:00:21]} 21. Bxb7 {[%clk 0:00:48]}  Nxb7 {[%clk 0:00:21]} 22. Rc3 {[%clk 0:00:39]}  Ne4 {[%clk 0:00:19]} 23. Rc2 {[%clk 0:00:35]}  g5 {[%clk 0:00:16]} 24. f3 {[%clk 0:00:34]}  Ned6 {[%clk 0:00:16]} 25. Kf2 {[%clk 0:00:34]}  a4 {[%clk 0:00:15]} 26. bxa4 {[%clk 0:00:23]}  Rxa4 {[%clk 0:00:15]} 27. Nd3 {[%clk 0:00:22]}  Nc4 {[%clk 0:00:11]} 28. Bc1 {[%clk 0:00:20]}  g4 {[%clk 0:00:10]} 29. fxg4 {[%clk 0:00:18]}  Kd6 {[%clk 0:00:10]} 30. e4 {[%clk 0:00:17]}  Ne5 {[%clk 0:00:08]} 31. Nxe5 {[%clk 0:00:16]}  Kxe5 {[%clk 0:00:07]} 32. Bb2+ {[%clk 0:00:16]}  Kxe4 {[%clk 0:00:07]} 33. Bxf6 {[%clk 0:00:12]}  Rxa3 {[%clk 0:00:07]} 34. Be7 {[%clk 0:00:10]}  Kd5 {[%clk 0:00:05]} 35. g5 {[%clk 0:00:10]}  Ra4 {[%clk 0:00:03]} 36. h4 {[%clk 0:00:09]}  c4 {[%clk 0:00:02]} 37. Kf3 {[%clk 0:00:08]}  Ra1 {[%clk 0:00:01]} 38. Kg4 {[%clk 0:00:08]}  Rf1 {[%clk 0:00:02]} 39. h5 {[%clk 0:00:08]}  Nc5 {[%clk 0:00:02]} 40. g6 {[%clk 0:00:07]}  hxg6 {[%clk 0:00:02]} 41. hxg6 {[%clk 0:00:08]}  Nd3 {[%clk 0:00:01]} 42. Kg5 {[%clk 0:00:04]}  Rf5+ {[%clk 0:00:01]} 43. Kh6 {[%clk 0:00:04]}  Ne5 {[%clk 0:00:01]} 44. g7 {[%clk 0:00:02]}  Ng4+ {[%clk 0:00:02]} 45. Kg6 {[%clk 0:00:00]}  Ne5+ {[%clk 0:00:02]} 0-1

[Event "December 19 Early 2023"]
[Site "https://www.chess.com"]
[Date "2023.12.19"]
[Round "5"]
[White "Karttunen, Mika"]
[Black "Szpar, Milosz"]
[Result "0-1"]
[Board "42"]
[TimeControl "180+1"]
[WhiteFideId "502081"]
[BlackFideId "1184989"]
[WhiteElo "2396"]
[BlackElo "2446"]
[WhiteTeam "FIN"]
[BlackTeam "POL"]
[WhiteClock "0:00:10"]
[BlackClock "0:00:15"]

1. d4 {[%clk 0:03:00]}  d5 {[%clk 0:02:59]} 2. c4 {[%clk 0:03:00]}  e6 {[%clk 0:03:00]} 3. Nc3 {[%clk 0:03:00]}  Nf6 {[%clk 0:02:58]} 4. cxd5 {[%clk 0:02:58]}  exd5 {[%clk 0:02:58]} 5. Bg5 {[%clk 0:02:58]}  c6 {[%clk 0:02:58]} 6. Qc2 {[%clk 0:02:57]}  h6 {[%clk 0:02:55]} 7. Bh4 {[%clk 0:02:56]}  Be6 {[%clk 0:02:52]} 8. e3 {[%clk 0:02:56]}  Nbd7 {[%clk 0:02:49]} 9. Bd3 {[%clk 0:02:55]}  g5 {[%clk 0:02:49]} 10. Bg3 {[%clk 0:02:55]}  Nh5 {[%clk 0:02:47]} 11. Nge2 {[%clk 0:02:38]}  Nxg3 {[%clk 0:02:45]} 12. Nxg3 {[%clk 0:02:38]}  h5 {[%clk 0:02:45]} 13. Nf5 {[%clk 0:02:29]}  h4 {[%clk 0:02:38]} 14. O-O-O {[%clk 0:02:24]}  Qa5 {[%clk 0:02:37]} 15. Kb1 {[%clk 0:02:23]}  O-O-O {[%clk 0:02:36]} 16. g4 {[%clk 0:02:01]}  Kb8 {[%clk 0:02:31]} 17. h3 {[%clk 0:02:00]}  Rc8 {[%clk 0:02:29]} 18. Qa4 {[%clk 0:01:52]}  Qd8 {[%clk 0:02:13]} 19. Rhf1 {[%clk 0:01:49]}  a6 {[%clk 0:02:05]} 20. f4 {[%clk 0:01:45]}  Ka7 {[%clk 0:02:02]} 21. fxg5 {[%clk 0:01:31]}  Qxg5 {[%clk 0:01:48]} 22. Rf3 {[%clk 0:01:29]}  Nb6 {[%clk 0:01:42]} 23. Qc2 {[%clk 0:01:27]}  c5 {[%clk 0:01:39]} 24. Qh2 {[%clk 0:01:18]}  cxd4 {[%clk 0:01:32]} 25. exd4 {[%clk 0:01:17]}  Bb4 {[%clk 0:01:31]} 26. Ne2 {[%clk 0:01:13]}  Rc6 {[%clk 0:01:29]} 27. Qf4 {[%clk 0:01:07]}  Qd8 {[%clk 0:01:24]} 28. a3 {[%clk 0:00:53]}  Be7 {[%clk 0:01:16]} 29. Nxe7 {[%clk 0:00:49]}  Qxe7 {[%clk 0:01:16]} 30. Qf6 {[%clk 0:00:49]}  Qe8 {[%clk 0:01:01]} 31. Qg5 {[%clk 0:00:43]}  Na4 {[%clk 0:00:51]} 32. Bc2 {[%clk 0:00:37]}  Rb6 {[%clk 0:00:46]} 33. Rb3 {[%clk 0:00:35]}  Qb8 {[%clk 0:00:25]} 34. Rxb6 {[%clk 0:00:34]}  Nxb6 {[%clk 0:00:25]} 35. Nf4 {[%clk 0:00:33]}  Rg8 {[%clk 0:00:23]} 36. Qf6 {[%clk 0:00:31]}  Nd7 {[%clk 0:00:23]} 37. Qh6 {[%clk 0:00:28]}  Rh8 {[%clk 0:00:23]} 38. Qg5 {[%clk 0:00:28]}  f6 {[%clk 0:00:24]} 39. Qg7 {[%clk 0:00:25]}  Rg8 {[%clk 0:00:20]} 40. Qe7 {[%clk 0:00:24]}  Re8 {[%clk 0:00:20]} 41. Qxe6 {[%clk 0:00:23]}  Rxe6 {[%clk 0:00:20]} 42. Nxe6 {[%clk 0:00:24]}  Qh2 {[%clk 0:00:19]} 43. Rd3 {[%clk 0:00:22]}  Qh1+ {[%clk 0:00:17]} 44. Ka2 {[%clk 0:00:19]}  Qe4 {[%clk 0:00:17]} 45. Ng7 {[%clk 0:00:17]}  Nb6 {[%clk 0:00:16]} 46. Nf5 {[%clk 0:00:17]}  Qe2 {[%clk 0:00:16]} 47. Ka1 {[%clk 0:00:16]}  Qxc2 {[%clk 0:00:15]} 48. Rc3 {[%clk 0:00:16]}  Qd1+ {[%clk 0:00:15]} 49. Ka2 {[%clk 0:00:16]}  Nc4 {[%clk 0:00:16]} 50. Nxh4 {[%clk 0:00:16]}  Qd2 {[%clk 0:00:16]} 51. Rb3 {[%clk 0:00:17]}  Qxd4 {[%clk 0:00:15]} 52. Nf3 {[%clk 0:00:10]}  Qf2 {[%clk 0:00:15]} 0-1

[Event "December 19 Early 2023"]
[Site "https://www.chess.com"]
[Date "2023.12.19"]
[Round "5"]
[White "Beerdsen, Thomas"]
[Black "Golubev, Mikhail"]
[Result "1-0"]
[Board "45"]
[TimeControl "180+1"]
[WhiteFideId "1030108"]
[BlackFideId "14100983"]
[WhiteElo "2550"]
[BlackElo "2352"]
[WhiteTeam "NED"]
[BlackTeam "UKR"]
[WhiteClock "0:01:45"]
[BlackClock "0:00:00"]

1. e4 {[%clk 0:03:00]}  c5 {[%clk 0:02:41]} 2. Nf3 {[%clk 0:02:59]}  d6 {[%clk 0:02:41]} 3. d4 {[%clk 0:03:00]}  cxd4 {[%clk 0:02:40]} 4. Nxd4 {[%clk 0:03:01]}  Nf6 {[%clk 0:02:41]} 5. Nc3 {[%clk 0:03:01]}  g6 {[%clk 0:02:40]} 6. h3 {[%clk 0:03:01]}  Nc6 {[%clk 0:02:36]} 7. Nf3 {[%clk 0:03:01]}  Bg7 {[%clk 0:02:34]} 8. Bc4 {[%clk 0:03:02]}  O-O {[%clk 0:02:33]} 9. O-O {[%clk 0:03:03]}  b6 {[%clk 0:02:28]} 10. Bg5 {[%clk 0:03:03]}  Bb7 {[%clk 0:02:21]} 11. Qe2 {[%clk 0:03:03]}  Rc8 {[%clk 0:02:18]} 12. Rad1 {[%clk 0:03:04]}  Na5 {[%clk 0:02:09]} 13. Bb3 {[%clk 0:03:04]}  Qc7 {[%clk 0:01:53]} 14. Rfe1 {[%clk 0:02:59]}  a6 {[%clk 0:01:48]} 15. Qe3 {[%clk 0:02:51]}  b5 {[%clk 0:01:23]} 16. a3 {[%clk 0:02:46]}  Qc5 {[%clk 0:01:21]} 17. Qf4 {[%clk 0:02:36]}  Nxb3 {[%clk 0:01:05]} 18. cxb3 {[%clk 0:02:37]}  b4 {[%clk 0:01:03]} 19. Na4 {[%clk 0:02:32]}  Qc2 {[%clk 0:00:59]} 20. Nd4 {[%clk 0:02:30]}  Qc7 {[%clk 0:00:54]} 21. Bxf6 {[%clk 0:02:11]}  Bxf6 {[%clk 0:00:52]} 22. axb4 {[%clk 0:02:12]}  Bxd4 {[%clk 0:00:49]} 23. Rxd4 {[%clk 0:02:11]}  e5 {[%clk 0:00:49]} 24. Qf6 {[%clk 0:02:09]}  exd4 {[%clk 0:00:47]} 25. Qxd4 {[%clk 0:02:10]}  Qe7 {[%clk 0:00:45]} 26. Nb6 {[%clk 0:02:04]}  Rc2 {[%clk 0:00:45]} 27. Nc4 {[%clk 0:02:04]}  d5 {[%clk 0:00:34]} 28. Ne3 {[%clk 0:02:01]}  Rcc8 {[%clk 0:00:29]} 29. Ng4 {[%clk 0:02:01]}  f6 {[%clk 0:00:26]} 30. e5 {[%clk 0:02:01]}  fxe5 {[%clk 0:00:24]} 31. Rxe5 {[%clk 0:02:02]}  Qg7 {[%clk 0:00:24]} 32. Qe3 {[%clk 0:02:02]}  h5 {[%clk 0:00:20]} 33. Re7 {[%clk 0:02:00]}  Rf7 {[%clk 0:00:17]} 34. Nh6+ {[%clk 0:01:58]}  Qxh6 {[%clk 0:00:14]} 35. Qxh6 {[%clk 0:01:59]}  Rxe7 {[%clk 0:00:15]} 36. Qxg6+ {[%clk 0:02:00]}  Rg7 {[%clk 0:00:15]} 37. Qe6+ {[%clk 0:01:59]}  Kh8 {[%clk 0:00:13]} 38. Qe5 {[%clk 0:01:55]}  Kg8 {[%clk 0:00:09]} 39. Kh2 {[%clk 0:01:50]}  d4 {[%clk 0:00:08]} 40. g4 {[%clk 0:01:50]}  Rd8 {[%clk 0:00:07]} 41. Qe6+ {[%clk 0:01:50]}  Kh8 {[%clk 0:00:05]} 42. Qh6+ {[%clk 0:01:50]}  Kg8 {[%clk 0:00:05]} 43. Qe6+ {[%clk 0:01:49]}  Kh8 {[%clk 0:00:05]} 44. Qf6 {[%clk 0:01:49]}  Rd7 {[%clk 0:00:02]} 45. gxh5 {[%clk 0:01:49]}  Kg8 {[%clk 0:00:01]} 46. Qe6+ {[%clk 0:01:49]}  Rdf7 {[%clk 0:00:00]} 47. h4 {[%clk 0:01:45]} 1-0